bitfinex/quotes_ETHUSD_20251010
["timestamp","ask_amount","ask_price","bid_price","bid_amount"]
[1760056715709,2.303,4382.1,4382.0,6.50501191]
[1760056717347,2.303,4382.1,4382.0,8.42501191]
[1760056717546,4.171,4382.1,4382.0,8.31141191]
[1760056717716,0.002,4382.1,4382.0,8.99681365]
[1760056717919,0.002,4382.1,4382.0,12.24839714]
[1760056719922,0.002,4382.5,4382.4,2.28185469]
[1760056720163,0.002,4382.5,4382.4,7.70444219]
[1760056720448,0.002,4382.5,4382.4,8.12182365]
[1760056720650,0.002,4382.5,4382.4,8.21319405]
[1760056722249,1e-08,4382.6,4382.5,4.20180262]
[1760056722450,1e-08,4382.6,4382.5,5.1268828]
[1760056722664,0.002,4384.6,4382.8,2.28164643]
[1760056722851,0.002,4384.6,4383.6,3.25158349]
[1760056722852,2.376,4384.6,4383.6,3.25158349]
[1760056723053,0.011,4384.3,4383.6,5.19439579]
[1760056723252,0.011,4384.3,4383.6,7.89301352]
[1760056723457,0.011,4384.3,4383.6,8.21254415]
[1760056723659,0.011,4384.3,4383.6,8.6592833]
[1760056725655,0.011,4384.3,4383.6,8.21254415]
[1760056727338,0.011,4384.3,4383.6,8.32614415]
[1760056729746,0.011,4384.3,4383.6,8.79254475]
[1760056742323,1e-08,4384.1,4383.7,1.92]
[1760056742473,1e-08,4384.1,4384.0,7.45260538]
[1760056742820,1e-08,4384.1,4384.0,13.99520538]
[1760056742971,1e-08,4384.1,4384.0,14.44050538]
[1760056743178,0.002,4384.6,4384.0,14.44050538]
[1760056743179,0.002,4384.6,4384.5,2.28076177]
[1760056743379,0.002,4384.6,4384.5,5.78333834]
[1760056743578,0.002,4384.6,4384.5,8.23943073]
[1760056744497,1e-08,4384.9,4384.8,2.28060572]
[1760056744709,1e-08,4384.9,4384.8,11.98299526]
[1760056744878,1e-08,4384.9,4384.8,14.78755137]
[1760056745910,1e-08,4384.9,4384.8,14.87886733]
[1760056746277,0.005,4385.9,4384.9,4.20055371]
[1760056746501,0.005,4385.9,4385.6,2.28016774]
[1760056746708,0.005,4385.9,4385.8,7.45166922]
[1760056746916,0.005,4385.9,4385.8,7.67985469]
[1760056747113,0.005,4385.9,4385.8,8.12515469]
[1760056747516,0.005,4385.9,4385.8,8.9153803]
[1760056748389,0.005,4385.9,4385.8,9.60015624]
[1760056751311,0.007,4385.9,4385.8,5.55834714]
[1760056755030,0.007,4385.9,4385.8,5.67194714]
[1760056758231,0.007,4385.9,4385.8,5.44376167]
[1760056760337,0.007,4385.9,4385.8,4.99846167]
[1760056760538,0.007,4385.9,4385.8,5.44376167]
[1760056764554,0.002,4386.4,4386.3,8.24163492]
[1760056765026,0.002,4386.4,4386.3,8.68693492]
[1760056765947,0.002,4386.4,4386.3,8.77822191]
[1760056767316,0.002,4386.4,4386.3,4.64512582]
[1760056767547,0.002,4386.4,4386.3,4.66792407]
[1760056768812,0.002,4386.4,4386.3,4.64512582]
[1760056772264,0.002,4386.4,4386.3,2.3653]
[1760056772582,0.002,4386.4,4386.3,4.64512582]
[1760056774459,0.002,4386.4,4386.3,4.75872582]
[1760056774777,0.002,4386.4,4386.3,2.0336]
[1760056775266,0.002,4386.4,4386.3,4.78582582]
[1760056775939,0.002,4386.4,4386.3,2.506]
[1760056776272,0.002,4386.4,4386.3,0.1136]
[1760056776662,0.002,4386.4,4386.3,0.586]
[1760056777690,0.002,4386.4,4386.3,2.88862407]
[1760056779100,0.002,4386.4,4386.3,0.60879825]
[1760056779400,0.002,4386.4,4386.3,0.586]
[1760056779699,0.002,4386.4,4386.3,2.86582582]
[1760056779867,0.002,4386.4,4386.3,0.586]
[1760056780472,0.002,4386.4,4386.3,0.60879825]
[1760056780796,0.002,4386.4,4386.3,2.88862407]
[1760056781497,0.002,4386.4,4386.3,0.586]
[1760056784699,0.002,4386.4,4386.3,0.1136]
[1760056785193,0.002,4386.4,4386.3,0.586]
[1760056786597,0.002,4386.4,4386.3,0.60879825]
[1760056788372,0.002,4386.4,4386.3,2.88862407]
[1760056788873,0.002,4386.4,4386.3,0.60879825]
[1760056789570,0.002,4386.4,4386.3,2.88862407]
[1760056789775,2.398,4386.4,4386.3,3.17748648]
[1760056790010,0.002,4386.4,4386.3,3.17748648]
[1760056791595,0.002,4386.4,4386.3,0.1136]
[1760056792394,0.002,4386.4,4386.3,0.5797]
[1760056794429,0.002,4386.4,4386.3,0.60249825]
[1760056794639,8.024,4386.4,4386.3,2.88232407]
[1760056795349,0.002,4386.4,4386.3,2.88232407]
[1760056795553,6.427,4386.4,4386.3,2.85952582]
[1760056798941,6.427,4386.4,4386.3,2.88232407]
[1760056800044,6.427,4386.4,4386.3,2.85952582]
[1760056801244,0.002,4386.4,4386.3,2.88232407]
[1760056801456,0.002,4386.4,4386.3,2.85952582]
[1760056804851,0.002,4386.4,4386.3,0.5797]
[1760056807526,0.002,4386.4,4386.3,0.1136]
[1760056809563,2.27983158,4386.3,4385.8,0.001]
[1760056809762,0.002,4386.4,4385.8,0.5807]
[1760056810064,0.002,4386.4,4385.8,0.13740085]
[1760056810266,0.002,4386.4,4385.9,0.4661]
[1760056810498,0.002,4386.4,4386.0,0.02279981]
[1760056811376,0.4306,4386.3,4385.8,0.1146]
[1760056811609,0.002,4386.4,4385.8,0.1146]
[1760056811760,0.4306,4386.2,4385.8,0.1146]
[1760056811960,2.371,4386.1,4385.8,0.1146]
[1760056812191,6.425,4386.0,4385.8,0.1146]
[1760056813677,6.425,4386.0,4385.8,0.001]
[1760056814265,6.8556,4386.0,4385.8,0.001]
[1760056815001,6.425,4386.0,4385.8,0.001]
[1760056815518,0.002,4386.4,4385.9,0.4661]
[1760056815665,8.796,4386.3,4386.0,0.02279981]
[1760056816069,10.01162147,4386.3,4385.9,0.1136]
[1760056816390,10.01162147,4386.3,4385.8,0.001]
[1760056816391,3.67521472,4386.2,4385.8,0.001]
[1760056816764,3.24461472,4386.2,4385.8,0.001]
[1760056817003,0.4306,4386.1,4385.8,0.001]
[1760056817503,0.4306,4386.0,4385.8,0.001]
[1760056817666,6.425,4385.9,4385.8,0.001]
[1760056817862,6.8556,4385.9,4385.8,0.001]
[1760056819203,7.91504964,4385.9,4385.8,0.001]
[1760056819371,8.10514964,4385.9,4385.8,0.001]
[1760056819573,13.6297981,4385.9,4385.8,0.001]
[1760056821397,13.5561981,4385.9,4385.8,0.001]
[1760056822672,9.69088338,4385.9,4385.8,0.001]
[1760056822872,8.63143374,4385.9,4385.8,0.001]
[1760056823115,11.07803374,4385.9,4385.8,0.001]
[1760056823327,11.50393374,4385.9,4385.8,0.001]
[1760056826673,11.69873374,4385.9,4385.8,0.001]
[1760056827474,12.33233374,4385.9,4385.8,0.001]
[1760056827800,14.58610419,4385.9,4385.8,0.001]
[1760056838717,5.78810419,4385.9,4385.8,0.001]
[1760056838920,26.48799271,4385.9,4385.8,0.001]
[1760056839711,26.57934684,4385.9,4385.8,0.001]
[1760056842838,2.9138417,4385.5,4385.3,0.001]
[1760056843019,14.99634494,4385.5,4385.3,0.001]
[1760056843213,15.41994494,4385.5,4385.3,0.001]
[1760056843814,15.51130804,4385.5,4385.3,0.001]
[1760056850832,16.12506333,4385.5,4385.3,0.001]
[1760056851030,4.8338937,4385.4,4385.1,1e-08]
[1760056851230,5.79821472,4385.2,4385.1,1e-08]
[1760056851431,6.28910324,4385.2,4385.1,1e-08]
[1760056851737,10.29041185,4385.2,4385.1,1e-08]
[1760056851942,13.53502657,4385.2,4385.1,1e-08]
[1760056852642,10.29041185,4385.2,4385.1,1e-08]
[1760056854424,16.71841185,4385.2,4385.1,1e-08]
[1760056854622,28.58341185,4385.2,4385.1,1e-08]
[1760056859452,28.58396352,4385.2,4385.1,1e-08]
[1760056864435,10.29096352,4385.2,4385.1,1e-08]
[1760056864641,28.58596352,4385.2,4385.1,1e-08]
[1760056864964,0.49344019,4385.2,4385.1,1e-08]
[1760056865161,2.375,4385.2,4385.1,0.46860001]
[1760056865467,4.132,4385.2,4385.1,0.46860001]
[1760056866460,6.431,4385.2,4385.1,3.73601922]
[1760056866665,6.431,4385.2,4385.1,0.84240193]
[1760056866886,6.431,4385.2,4385.1,0.46860001]
[1760056868890,6.431,4385.2,4385.1,2.74904971]
[1760056869255,6.431,4385.2,4385.1,0.46860001]
[1760056869456,6.431,4385.2,4385.1,1e-08]
[1760056871393,8.7113977,4385.2,4385.1,1e-08]
[1760056871592,9.1160977,4385.2,4385.1,1e-08]
[1760056873895,6.431,4385.2,4385.1,1e-08]
[1760056874532,0.002,4385.2,4385.1,1e-08]
[1760056874826,7.254,4385.2,4385.1,1e-08]
[1760056876521,7.3676,4385.2,4385.1,1e-08]
[1760056876919,0.1156,4385.2,4385.1,1e-08]
[1760056877120,8.9146,4385.2,4385.1,1e-08]
[1760056879098,0.1156,4385.2,4385.1,1e-08]
[1760056879500,3.015,4385.2,4385.1,0.46860001]
[1760056879911,0.002,4385.2,4385.1,0.46860001]
[1760056880243,0.002,4385.2,4385.1,0.28875483]
[1760056880545,0.131,4385.2,4385.1,2.74904971]
[1760056880828,2.081,4385.2,4385.1,3.33124972]
[1760056887550,0.002,4385.2,4385.1,3.33124972]
[1760056887861,3.671,4385.2,4385.1,3.33124972]
[1760056890374,3.671,4385.2,4385.1,5.25124972]
[1760056890949,3.671,4385.2,4385.1,2.97080002]
[1760056891144,3.671,4385.2,4385.1,0.58220002]
[1760056891349,3.671,4385.2,4385.1,0.11360001]
[1760056891786,3.671,4385.2,4385.1,1e-08]
[1760056891787,4.0738,4385.2,4385.1,1e-08]
[1760056892078,4.48118,4385.2,4385.1,1e-08]
[1760056892270,6.8751777,4385.2,4385.1,1e-08]
[1760056892468,4.59478,4385.2,4385.1,1e-08]
[1760056892645,4.19198,4385.2,4385.1,1e-08]
[1760056892846,3.7846,4385.2,4385.1,1e-08]
[1760056895186,6.0649977,4385.2,4385.1,1e-08]
[1760056896063,6.4677977,4385.2,4385.1,1e-08]
[1760056896462,3.7846,4385.2,4385.1,1e-08]
[1760056899000,6.4677977,4385.2,4385.1,1e-08]
[1760056899207,7.3426092,4385.2,4385.1,1e-08]
[1760056899658,12.4716092,4385.2,4385.1,1e-08]
[1760056900156,13.1052092,4385.2,4385.1,1e-08]
[1760056912211,4.3072092,4385.2,4385.1,1e-08]
[1760056912416,22.5972092,4385.2,4385.1,1e-08]
[1760056912611,2.4876,4385.2,4385.1,1e-08]
[1760056912798,8.9146,4385.2,4385.1,1e-08]
[1760056916190,6.5426,4385.2,4385.1,1e-08]
[1760056916394,8.9146,4385.2,4385.1,1e-08]
[1760056917344,0.1156,4385.2,4385.1,1e-08]
[1760056917489,8.9146,4385.2,4385.1,1e-08]
[1760056918809,11.1949977,4385.2,4385.1,1e-08]
[1760056919005,13.44676815,4385.2,4385.1,1e-08]
[1760056919310,13.84586815,4385.2,4385.1,1e-08]
[1760056920315,14.47946815,4385.2,4385.1,1e-08]
[1760056921111,14.97150496,4385.2,4385.1,1e-08]
[1760056921326,11.70836815,4385.2,4385.1,1e-08]
[1760056921526,23.57136815,4385.2,4385.1,1e-08]
[1760056921699,24.46249978,4385.2,4385.1,1e-08]
[1760056921905,24.46249797,4385.2,4385.1,1e-08]
[1760056929364,6.17249797,4385.2,4385.1,1e-08]
[1760056929661,25.45833118,4385.2,4385.1,1e-08]
[1760056931261,25.46033118,4385.2,4385.1,1e-08]
[1760056941297,7.16833118,4385.2,4385.1,1e-08]
[1760056941445,25.46033118,4385.2,4385.1,1e-08]
[1760056944778,28.70793484,4385.2,4385.1,1e-08]
[1760056944978,33.49372337,4385.2,4385.1,1e-08]
[1760056945197,32.87970529,4385.2,4385.1,1e-08]
[1760056945414,29.63210163,4385.2,4385.1,1e-08]
[1760056946182,33.49503351,4385.2,4385.1,1e-08]
[1760056946383,32.87970529,4385.2,4385.1,1e-08]
[1760056946895,33.49503116,4385.2,4385.1,1e-08]
[1760056947096,32.87970529,4385.2,4385.1,1e-08]
[1760056948094,33.4948967,4385.2,4385.1,1e-08]
[1760056948300,32.87970529,4385.2,4385.1,1e-08]
[1760056951300,21.01470529,4385.2,4385.1,1e-08]
[1760056951503,32.87970529,4385.2,4385.1,1e-08]
[1760056951828,2.5536,4385.1,4384.7,0.001]
[1760056952128,5.80120366,4384.8,4384.7,0.001]
[1760056952310,13.13316926,4384.8,4384.7,0.001]
[1760056952508,15.81287498,4384.8,4384.7,0.001]
[1760056953827,16.63142411,4384.8,4384.7,0.001]
[1760056954123,18.74779374,4384.8,4384.7,0.001]
[1760056954328,17.92924461,4384.8,4384.7,0.001]
[1760056955833,0.6336,4384.5,4382.8,0.001]
[1760056955992,2.91493412,4383.4,4382.8,0.001]
[1760056956193,26.37653778,4383.4,4382.8,0.001]
[1760056956508,26.77403778,4383.4,4382.8,0.001]
[1760056957523,23.52643412,4383.4,4382.8,0.001]
[1760056964727,24.01681448,4383.4,4382.8,0.001]
[1760056964949,26.26858493,4383.4,4382.8,0.001]
[1760056965455,2.91519437,4382.9,4382.8,0.001]
[1760056965651,12.59179803,4382.9,4382.8,0.001]
[1760056965858,14.90929803,4382.9,4382.8,0.001]
[1760056966020,16.63973931,4382.9,4382.8,0.001]
[1760056966750,17.12993618,4382.9,4382.8,0.001]
[1760056972603,20.37753984,4382.9,4382.8,0.001]
[1760056972954,20.4689683,4382.9,4382.8,0.001]
[1760056973159,0.6336,4382.2,4382.1,0.005]
[1760056973385,17.43407042,4382.2,4382.1,0.005]
[1760056973586,17.83157042,4382.2,4382.1,0.005]
[1760056973904,4.9492109,4382.1,4382.0,0.001]
[1760056974060,2.91587131,4381.6,4381.5,0.001]
[1760056974256,27.74166576,4381.6,4381.5,0.001]
[1760056974465,24.8897621,4381.6,4381.5,0.001]
[1760056974884,24.8897621,4381.6,4381.1,1e-08]
[1760056974885,2.5536,4381.3,4381.1,1e-08]
[1760056975073,17.63800089,4381.2,4381.1,1e-08]
[1760056975271,18.03370089,4381.2,4381.1,1e-08]
[1760056975884,21.28130455,4381.2,4381.1,1e-08]
[1760056977288,8.47938334,4381.2,4381.1,1e-08]
[1760056977492,26.78238334,4381.2,4381.1,1e-08]
[1760056978060,4.20247968,4381.2,4381.1,1e-08]
[1760056978376,23.53577968,4381.2,4381.1,1e-08]
[1760056979890,15.69590366,4381.2,4381.1,1e-08]
[1760056980094,26.78438334,4381.2,4381.1,1e-08]
[1760056981464,8.47938334,4381.2,4381.1,1e-08]
[1760056981765,26.78438334,4381.2,4381.1,1e-08]
[1760056981964,25.78855013,4381.2,4381.1,1e-08]
[1760056982161,26.78438334,4381.2,4381.1,1e-08]
[1760056982373,24.41138334,4381.2,4381.1,1e-08]
[1760056982574,26.78638334,4381.2,4381.1,1e-08]
[1760056982778,8.47938334,4381.2,4381.1,1e-08]
[1760056982978,21.2563,4381.2,4381.1,1e-08]
[1760056983212,9.3813,4381.2,4381.1,1e-08]
[1760056983376,5.23177968,4381.2,4381.1,1e-08]
[1760056983581,23.53877968,4381.2,4381.1,1e-08]
[1760056983976,5.23177968,4381.2,4381.1,1e-08]
[1760056984207,23.53877968,4381.2,4381.1,1e-08]
[1760056984985,23.14307968,4381.2,4381.1,1e-08]
[1760056985368,23.53877968,4381.2,4381.1,1e-08]
[1760056985986,26.78638334,4381.2,4381.1,1e-08]
[1760056990071,29.03815379,4381.2,4381.1,1e-08]
[1760056990379,29.528461,4381.2,4381.1,1e-08]
[1760056991708,30.33595395,4381.2,4381.1,1e-08]
[1760056994188,30.94759259,4381.2,4381.1,1e-08]
[1760056995090,30.33595395,4381.2,4381.1,1e-08]
[1760056999591,3.40638689,4381.2,4381.1,1e-08]
[1760056999919,20.15048689,4381.2,4381.1,1e-08]
[1760057000118,20.78408689,4381.2,4381.1,1e-08]
[1760057001116,9.29830721,4381.2,4381.1,1e-08]
[1760057001318,8.9216,4381.2,4381.1,1e-08]
[1760057002733,0.1136,4381.2,4381.1,1e-08]
[1760057002936,0.771,4381.2,4381.1,2.72119861]
[1760057003290,0.771,4381.2,4381.1,0.87740001]
[1760057003490,0.771,4381.2,4381.1,3.15993179]
[1760057005830,0.771,4381.2,4381.1,0.43870001]
[1760057006119,0.771,4381.2,4381.1,1e-08]
[1760057008416,3.05347968,4381.2,4381.1,1e-08]
[1760057008628,3.51897968,4381.2,4381.1,1e-08]
[1760057010431,5.37572645,4381.2,4381.1,1e-08]
[1760057011510,4.91022645,4381.2,4381.1,1e-08]
[1760057011709,1.85674677,4381.2,4381.1,1e-08]
[1760057011914,18.9406,4381.2,4381.1,1e-08]
[1760057012500,21.68857968,4381.2,4381.1,1e-08]
[1760057013125,21.69057968,4381.2,4381.1,1e-08]
[1760057013834,0.002,4381.2,4381.1,1e-08]
[1760057014036,4.4926,4381.2,4381.1,1e-08]
[1760057014242,4.4926,4381.2,4381.1,0.43380001]
[1760057015006,0.1156,4381.2,4381.1,0.43380001]
[1760057015207,8.9236,4381.2,4381.1,0.43380001]
[1760057016943,8.9236,4381.2,4381.1,1e-08]
[1760057020568,11.20607968,4381.2,4381.1,1e-08]
[1760057020756,17.79728426,4381.2,4381.1,1e-08]
[1760057021357,13.74218765,4381.2,4381.1,1e-08]
[1760057021563,10.99420797,4381.2,4381.1,1e-08]
[1760057021866,13.27668765,4381.2,4381.1,1e-08]
[1760057022465,10.99420797,4381.2,4381.1,1e-08]
[1760057022665,13.27668765,4381.2,4381.1,1e-08]
[1760057025382,13.74218765,4381.2,4381.1,1e-08]
[1760057026214,14.37578765,4381.2,4381.1,1e-08]
[1760057030737,2.81980797,4381.2,4381.1,1e-08]
[1760057030943,2.377,4381.2,4381.1,1e-08]
[1760057031143,8.809,4381.2,4381.1,1e-08]
[1760057031874,8.809,4381.2,4381.1,0.46950001]
[1760057032073,8.809,4381.2,4381.1,1e-08]
[1760057037697,11.54167968,4381.2,4381.1,1e-08]
[1760057037869,13.34095666,4381.2,4381.1,1e-08]
[1760057038891,13.97455666,4381.2,4381.1,1e-08]
[1760057043445,5.16755666,4381.2,4381.1,1e-08]
[1760057043593,21.67627968,4381.2,4381.1,1e-08]
[1760057044389,7.5188,4381.2,4381.1,1e-08]
[1760057044590,18.9436,4381.2,4381.1,1e-08]
[1760057045300,21.22607968,4381.2,4381.1,1e-08]
[1760057045993,20.59247968,4381.2,4381.1,1e-08]
[1760057046198,18.31,4381.2,4381.1,1e-08]
[1760057046597,0.002,4381.2,4381.1,1e-08]
[1760057046793,8.81,4381.2,4381.1,1e-08]
[1760057048617,12.03547987,4381.2,4381.1,1e-08]
[1760057048816,14.28725032,4381.2,4381.1,1e-08]
[1760057053593,11.06177045,4381.2,4381.1,1e-08]
[1760057053831,8.81,4381.2,4381.1,1e-08]
[1760057054768,11.09247968,4381.2,4381.1,1e-08]
[1760057056227,0.002,4381.2,4381.1,1e-08]
[1760057056447,8.81,4381.2,4381.1,1e-08]
[1760057057601,0.002,4381.2,4381.1,1e-08]
[1760057057834,8.809,4381.2,4381.1,0.47010001]
[1760057061058,0.002,4381.2,4381.1,0.47010001]
[1760057061221,8.809,4381.2,4381.1,0.47010001]
[1760057064313,8.809,4381.2,4381.1,0.84482762]
[1760057064515,8.809,4381.2,4381.1,3.1273594]
[1760057064940,8.809,4381.2,4381.1,3.81302745]
[1760057066014,0.002,4381.2,4381.1,3.81302745]
[1760057066214,8.809,4381.2,4381.1,3.81302745]
[1760057072433,0.002,4381.2,4381.1,3.81302745]
[1760057072739,0.109,4381.2,4381.1,3.81302745]
[1760057081516,0.109,4381.2,4381.1,3.34292745]
[1760057081695,0.109,4381.2,4381.1,1.49789567]
[1760057082016,0.109,4381.2,4381.1,1.12316806]
[1760057082178,0.109,4381.2,4381.1,3.40569984]
[1760057089422,0.109,4381.2,4381.1,1.12316806]
[1760057089917,0.109,4381.2,4381.1,3.40569984]
[1760057090525,0.109,4381.2,4381.1,0.68566806]
[1760057093274,0.002,4381.2,4381.1,3.41239984]
[1760057093428,7.809,4381.2,4381.1,3.41239984]
[1760057094058,7.809,4381.2,4381.1,1.12986806]
[1760057094368,0.002,4381.2,4381.1,3.41239984]
[1760057094576,8.807,4381.2,4381.1,3.43522515]
[1760057094728,8.807,4381.2,4381.1,3.41239984]
[1760057094926,0.002,4381.2,4381.1,3.43522515]
[1760057095144,2.818,4381.2,4381.1,3.43522515]
[1760057096270,2.818,4381.2,4381.1,3.41239984]
[1760057101873,2.818,4381.2,4381.1,1.12986806]
[1760057102229,2.818,4381.2,4381.1,0.68566806]
[1760057102670,3.2065,4381.2,4381.1,0.68566806]
[1760057102875,6.0961147,4381.2,4381.1,1e-08]
[1760057103177,6.2097147,4381.2,4381.1,1e-08]
[1760057104184,3.92723502,4381.2,4381.1,1e-08]
[1760057105747,6.2097147,4381.2,4381.1,1e-08]
[1760057107047,6.8433147,4381.2,4381.1,1e-08]
[1760057113304,7.33536753,4381.2,4381.1,1e-08]
[1760057113612,11.39074702,4381.2,4381.1,1e-08]
[1760057114913,11.48219931,4381.2,4381.1,1e-08]
[1760057115317,11.39074702,4381.2,4381.1,1e-08]
[1760057116916,11.48219931,4381.2,4381.1,1e-08]
[1760057117110,11.39074702,4381.2,4381.1,1e-08]
[1760057118213,11.48219931,4381.2,4381.1,1e-08]
[1760057120688,8.66619931,4381.2,4381.1,1e-08]
[1760057120886,26.97419931,4381.2,4381.1,1e-08]
[1760057121390,26.48214648,4381.2,4381.1,1e-08]
[1760057121606,26.97371469,4381.2,4381.1,1e-08]
[1760057122752,8.66571469,4381.2,4381.1,1e-08]
[1760057122956,26.97471469,4381.2,4381.1,1e-08]
[1760057123320,8.66571469,4381.2,4381.1,1e-08]
[1760057123652,26.97471469,4381.2,4381.1,1e-08]
[1760057123854,28.89471469,4381.2,4381.1,1e-08]
[1760057127257,28.8032624,4381.2,4381.1,1e-08]
[1760057127622,28.89471825,4381.2,4381.1,1e-08]
[1760057128264,29.51054517,4381.2,4381.1,1e-08]
[1760057130822,28.89471825,4381.2,4381.1,1e-08]
[1760057130970,29.51054517,4381.2,4381.1,1e-08]
[1760057132222,28.89471825,4381.2,4381.1,1e-08]
[1760057143713,29.71582081,4381.2,4381.1,1e-08]
[1760057143909,28.89471825,4381.2,4381.1,1e-08]
[1760057144659,29.71582081,4381.2,4381.1,1e-08]
[1760057152834,28.89471825,4381.2,4381.1,1e-08]
[1760057161948,2.91618388,4381.0,4380.9,0.001]
[1760057162236,14.01352254,4381.0,4380.9,0.001]
[1760057162435,14.77796202,4381.0,4380.9,0.001]
[1760057162832,16.01134501,4381.0,4380.9,0.001]
[1760057163039,16.01134501,4381.0,4380.1,0.005]
[1760057163040,0.6336,4380.8,4380.1,0.005]
[1760057163241,11.86177814,4381.0,4380.1,0.005]
[1760057163242,9.80603734,4380.2,4380.1,0.005]
[1760057163442,9.80603734,4380.2,4379.1,0.005]
[1760057163443,2.2835221,4379.2,4379.1,0.005]
[1760057163744,21.2281221,4379.2,4379.1,0.005]
[1760057164042,22.10619031,4379.2,4379.1,0.005]
[1760057164243,21.6146221,4379.2,4379.1,0.005]
[1760057164574,22.10727575,4379.2,4379.1,0.005]
[1760057164755,24.3590462,4379.2,4379.1,0.005]
[1760057165272,3.3036221,4379.2,4379.1,0.005]
[1760057165462,21.6156221,4379.2,4379.1,0.005]
[1760057167634,24.02764485,4379.2,4379.1,0.005]
[1760057168178,23.5356221,4379.2,4379.1,0.005]
[1760057172184,4.8371221,4379.2,4379.1,0.005]
[1760057172385,23.5942221,4379.2,4379.1,0.005]
[1760057173293,23.5942221,4379.2,4379.1,0.006]
[1760057175001,25.84599255,4379.2,4379.1,0.006]
[1760057175152,7.53099255,4379.2,4379.1,0.006]
[1760057175487,10.787406,4379.2,4379.1,0.006]
[1760057175796,26.85063555,4379.2,4379.1,0.006]
[1760057177662,24.47463555,4379.2,4379.1,0.006]
[1760057177866,26.85063555,4379.2,4379.1,0.006]
[1760057179798,26.85163555,4379.2,4379.1,0.006]
[1760057181597,19.2992221,4379.2,4379.1,0.006]
[1760057181796,21.6752221,4379.2,4379.1,0.006]
[1760057183166,27.183406,4379.2,4379.1,0.006]
[1760057185989,27.185406,4379.2,4379.1,0.006]
[1760057189234,27.6778543,4379.2,4379.1,0.006]
[1760057189534,27.185406,4379.2,4379.1,0.006]
[1760057189723,18.49663555,4379.2,4379.1,0.006]
[1760057189904,24.93863555,4379.2,4379.1,0.006]
[1760057191349,25.43141618,4379.2,4379.1,0.006]
[1760057192920,7.10841618,4379.2,4379.1,0.006]
[1760057193122,25.43041618,4379.2,4379.1,0.006]
[1760057193345,25.85396264,4379.2,4379.1,0.006]
[1760057198125,27.77396264,4379.2,4379.1,0.006]
[1760057200223,28.39019157,4379.2,4379.1,0.006]
[1760057204368,27.77396264,4379.2,4379.1,0.006]
[1760057205926,27.77413218,4379.2,4379.1,0.006]
[1760057218712,31.03054563,4379.2,4379.1,1e-08]
[1760057218875,32.26363241,4379.2,4379.1,1e-08]
[1760057219204,29.00721896,4379.2,4379.1,1e-08]
[1760057219406,29.09873109,4379.2,4379.1,1e-08]
[1760057220225,27.86564431,4379.2,4379.1,1e-08]
[1760057221267,29.09873109,4379.2,4379.1,1e-08]
[1760057221462,27.86564431,4379.2,4379.1,1e-08]
[1760057224907,37.37264431,4379.2,4379.1,1e-08]
[1760057225612,44.47264431,4379.2,4379.1,1e-08]
[1760057228085,45.70573109,4379.2,4379.1,1e-08]
[1760057228290,44.47264431,4379.2,4379.1,1e-08]
[1760057228985,45.70573109,4379.2,4379.1,1e-08]
[1760057230115,44.47264431,4379.2,4379.1,1e-08]
[1760057230612,8.47614915,4378.7,4378.6,1e-08]
[1760057230821,16.48408458,4378.7,4378.6,1e-08]
[1760057231184,16.92618458,4378.7,4378.6,1e-08]
[1760057231833,0.6336,4378.3,4376.4,0.205]
[1760057232129,0.6336,4378.3,4376.1,0.005]
[1760057232130,2.28456547,4377.2,4376.5,3.37001345]
[1760057232329,6.2416,4377.2,4376.5,3.83851345]
[1760057233191,8.96926547,4377.2,4376.5,0.1136]
[1760057233885,6.6847,4377.2,4376.5,0.1136]
[1760057234238,8.96926547,4377.2,4376.5,0.1136]
[1760057236716,6.6847,4377.2,4376.5,0.1136]
[1760057237021,6.6847,4377.2,4376.5,0.5821]
[1760057237211,8.96926547,4377.2,4376.5,0.5821]
[1760057239690,8.96926547,4377.2,4376.5,0.1136]
[1760057240707,6.6847,4377.2,4376.5,0.1136]
[1760057240913,6.6847,4377.2,4376.5,0.5821]
[1760057241109,8.52616547,4377.2,4376.5,0.1136]
[1760057241313,8.52616547,4377.2,4376.6,0.4685]
[1760057241511,0.1136,4377.2,4376.7,0.02284826]
[1760057241712,8.9286,4377.2,4377.1,0.4735]
[1760057241918,8.9286,4377.2,4377.1,0.005]
[1760057242486,11.21316547,4377.2,4377.1,0.005]
[1760057246390,11.64606547,4377.2,4377.1,0.005]
[1760057246806,11.21316547,4377.2,4377.1,0.005]
[1760057247441,6.5526,4377.2,4377.1,0.005]
[1760057247602,11.21416547,4377.2,4377.1,0.005]
[1760057248009,8.9296,4377.2,4377.1,0.005]
[1760057248209,11.21416547,4377.2,4377.1,0.006]
[1760057250282,11.64706547,4377.2,4377.1,0.006]
[1760057266089,11.21416547,4377.2,4377.1,0.006]
[1760057266458,11.64706547,4377.2,4377.1,0.006]
[1760057270099,11.72066547,4377.2,4377.1,0.006]
[1760057272834,11.28776547,4377.2,4377.1,0.006]
[1760057273877,11.72066547,4377.2,4377.1,0.006]
[1760057277290,11.28776547,4377.2,4377.1,0.006]
[1760057277993,0.1872,4377.2,4377.1,0.006]
[1760057278326,0.1872,4377.2,4377.1,2.75581766]
[1760057278327,0.0736,4377.2,4377.1,2.75581766]
[1760057278504,2.5226,4377.2,4377.1,3.00586592]
[1760057278705,2.5226,4377.2,4377.1,3.02871209]
[1760057279228,2.5226,4377.2,4377.1,0.72124826]
[1760057280494,2.5226,4377.2,4377.1,0.14244826]
[1760057281413,2.5226,4377.2,4377.1,0.60764826]
[1760057283901,0.0736,4377.2,4377.1,0.60764826]
[1760057284102,8.6986,4377.2,4377.1,0.60764826]
[1760057288043,8.6986,4377.2,4377.1,0.14244826]